[Event "Titled Tuesday Blitz March 22 Late 2022"]
[White "Jaskolka, Tomasz"]
[Black "Romanchuk, Viktor"]
[WhiteFideId "1170791"]
[BlackFideId "14109271"]
[WhiteElo "2073"]
[BlackElo "2242"]
[Result "1/2-1/2"]
[Round "10"]
[TimeControl "180+1"]
[Date "2022.03.22"]
[WhiteClock "0:00:14"]
[BlackClock "0:00:19"]

1. d4 {[%clk 0:03:00]}  d5 {[%clk 0:02:59]} 2. Bf4 {[%clk 0:03:00]}  Nf6 {[%clk 0:02:58]} 3. e3 {[%clk 0:03:00]}  c5 {[%clk 0:02:58]} 4. c3 {[%clk 0:03:01]}  Nc6 {[%clk 0:02:58]} 5. Nd2 {[%clk 0:03:00]}  cxd4 {[%clk 0:02:58]} 6. exd4 {[%clk 0:03:00]}  Bf5 {[%clk 0:02:59]} 7. Ngf3 {[%clk 0:03:00]}  e6 {[%clk 0:02:59]} 8. Ne5 {[%clk 0:02:48]}  Bd6 {[%clk 0:02:57]} 9. Bb5 {[%clk 0:02:47]}  Bxe5 {[%clk 0:02:57]} 10. Bxe5 {[%clk 0:02:43]}  O-O {[%clk 0:02:56]} 11. Bxc6 {[%clk 0:02:42]}  bxc6 {[%clk 0:02:55]} 12. O-O {[%clk 0:02:43]}  Nd7 {[%clk 0:02:52]} 13. Bd6 {[%clk 0:02:41]}  Re8 {[%clk 0:02:51]} 14. Re1 {[%clk 0:02:34]}  Qb6 {[%clk 0:02:49]} 15. b4 {[%clk 0:02:32]}  f6 {[%clk 0:02:39]} 16. Nb3 {[%clk 0:02:20]}  Bg6 {[%clk 0:02:34]} 17. Qg4 {[%clk 0:02:08]}  Bf7 {[%clk 0:02:31]} 18. a4 {[%clk 0:01:59]}  Rad8 {[%clk 0:02:26]} 19. h4 {[%clk 0:01:46]}  h5 {[%clk 0:02:20]} 20. Qg3 {[%clk 0:01:40]}  Qa6 {[%clk 0:02:16]} 21. Re3 {[%clk 0:01:30]}  e5 {[%clk 0:02:07]} 22. dxe5 {[%clk 0:01:23]}  fxe5 {[%clk 0:01:52]} 23. Bxe5 {[%clk 0:01:14]}  Nxe5 {[%clk 0:01:51]} 24. Rxe5 {[%clk 0:01:14]}  Qc4 {[%clk 0:01:43]} 25. Rxe8+ {[%clk 0:01:00]}  Rxe8 {[%clk 0:01:41]} 26. Nd4 {[%clk 0:01:00]}  Re4 {[%clk 0:01:27]} 27. Nf5 {[%clk 0:00:27]}  Rg4 {[%clk 0:01:25]} 28. Qe3 {[%clk 0:00:21]}  Bg6 {[%clk 0:01:05]} 29. Ne7+ {[%clk 0:00:19]}  Kh7 {[%clk 0:01:06]} 30. Nxg6 {[%clk 0:00:18]}  Rxg6 {[%clk 0:01:07]} 31. Rc1 {[%clk 0:00:16]}  a6 {[%clk 0:01:04]} 32. Qe5 {[%clk 0:00:15]}  Qxh4 {[%clk 0:01:02]} 33. g3 {[%clk 0:00:13]}  Qg4 {[%clk 0:01:00]} 34. a5 {[%clk 0:00:13]}  h4 {[%clk 0:00:54]} 35. Kg2 {[%clk 0:00:11]}  hxg3 {[%clk 0:00:45]} 36. Rh1+ {[%clk 0:00:11]}  Rh6 {[%clk 0:00:45]} 37. Rxh6+ {[%clk 0:00:11]}  Kxh6 {[%clk 0:00:43]} 38. fxg3 {[%clk 0:00:11]}  Qc4 {[%clk 0:00:41]} 39. Qe3+ {[%clk 0:00:10]}  Kg6 {[%clk 0:00:39]} 40. Qe6+ {[%clk 0:00:10]}  Kh7 {[%clk 0:00:39]} 41. Qf5+ {[%clk 0:00:10]}  Kg8 {[%clk 0:00:39]} 42. Qe5 {[%clk 0:00:11]}  Kh7 {[%clk 0:00:36]} 43. Kh3 {[%clk 0:00:11]}  Qf1+ {[%clk 0:00:34]} 44. Kg4 {[%clk 0:00:10]}  Qc4+ {[%clk 0:00:34]} 45. Qd4 {[%clk 0:00:08]}  Qxd4+ {[%clk 0:00:29]} 46. cxd4 {[%clk 0:00:08]}  Kg6 {[%clk 0:00:30]} 47. Kf4 {[%clk 0:00:08]}  Kf6 {[%clk 0:00:30]} 48. Kg4 {[%clk 0:00:08]}  Kg6 {[%clk 0:00:19]} 49. Kf4 {[%clk 0:00:09]}  Kf6 {[%clk 0:00:19]} 50. g4 {[%clk 0:00:09]}  g5+ {[%clk 0:00:17]} 51. Kf3 {[%clk 0:00:09]}  Ke6 {[%clk 0:00:18]} 52. Ke3 {[%clk 0:00:10]}  Kd6 {[%clk 0:00:18]} 53. Kd3 {[%clk 0:00:10]}  Kc7 {[%clk 0:00:18]} 54. Kc3 {[%clk 0:00:11]}  Kd6 {[%clk 0:00:19]} 55. Kb3 {[%clk 0:00:12]}  Kc7 {[%clk 0:00:19]} 56. Kc3 {[%clk 0:00:12]}  Kd6 {[%clk 0:00:19]} 57. Kb3 {[%clk 0:00:13]}  Kc7 {[%clk 0:00:19]} 58. Kc3 {[%clk 0:00:14]} 1/2-1/2


[Site "https://www.chess.com"]

[Event "Titled Tuesday Blitz March 22 Late 2022"]
[White "Kohler, Aran"]
[Black "Tanenbaum, Zachary"]
[WhiteFideId "1002856"]
[BlackFideId "2060850"]
[WhiteElo "2292"]
[BlackElo "2168"]
[Result "0-1"]
[Round "10"]
[TimeControl "180+1"]
[Date "2022.03.22"]
[WhiteClock "0:00:03"]
[BlackClock "0:00:06"]

1. d4 {[%clk 0:02:57]}  d5 {[%clk 0:02:59]} 2. Bf4 {[%clk 0:02:56]}  Nf6 {[%clk 0:02:59]} 3. e3 {[%clk 0:02:56]}  c5 {[%clk 0:02:59]} 4. c3 {[%clk 0:02:55]}  Nc6 {[%clk 0:02:56]} 5. Bd3 {[%clk 0:02:53]}  Qb6 {[%clk 0:02:54]} 6. Qb3 {[%clk 0:02:50]}  c4 {[%clk 0:02:54]} 7. Qxb6 {[%clk 0:02:50]}  axb6 {[%clk 0:02:55]} 8. Bc2 {[%clk 0:02:50]}  b5 {[%clk 0:02:55]} 9. Na3 {[%clk 0:02:39]}  b4 {[%clk 0:02:45]} 10. Nb5 {[%clk 0:02:38]}  Ra5 {[%clk 0:02:25]} 11. a4 {[%clk 0:02:26]}  Bd7 {[%clk 0:01:44]} 12. Bc7 {[%clk 0:02:20]}  Ra8 {[%clk 0:01:37]} 13. f4 {[%clk 0:02:12]}  e6 {[%clk 0:01:27]} 14. Bb6 {[%clk 0:02:00]}  Rc8 {[%clk 0:01:17]} 15. Nc7+ {[%clk 0:01:59]}  Ke7 {[%clk 0:01:15]} 16. Nf3 {[%clk 0:01:49]}  Ne8 {[%clk 0:00:52]} 17. Nb5 {[%clk 0:01:35]}  f6 {[%clk 0:00:42]} 18. Kd2 {[%clk 0:01:34]}  Kf7 {[%clk 0:00:40]} 19. g4 {[%clk 0:01:27]}  Nd6 {[%clk 0:00:34]} 20. Nxd6+ {[%clk 0:01:24]}  Bxd6 {[%clk 0:00:35]} 21. h4 {[%clk 0:01:24]}  b3 {[%clk 0:00:17]} 22. Bd1 {[%clk 0:01:22]}  Ra8 {[%clk 0:00:17]} 23. a5 {[%clk 0:01:21]}  Ra6 {[%clk 0:00:15]} 24. Be2 {[%clk 0:01:13]}  Rha8 {[%clk 0:00:14]} 25. g5 {[%clk 0:01:03]}  Nxa5 {[%clk 0:00:14]} 26. Bxa5 {[%clk 0:01:01]}  Rxa5 {[%clk 0:00:14]} 27. Rxa5 {[%clk 0:01:00]}  Rxa5 {[%clk 0:00:15]} 28. gxf6 {[%clk 0:00:56]}  gxf6 {[%clk 0:00:16]} 29. Rb1 {[%clk 0:00:55]}  Ra2 {[%clk 0:00:15]} 30. Nh2 {[%clk 0:00:27]}  Ke7 {[%clk 0:00:15]} 31. Ng4 {[%clk 0:00:17]}  Be8 {[%clk 0:00:14]} 32. Nh6 {[%clk 0:00:16]}  Kd7 {[%clk 0:00:09]} 33. Ng8 {[%clk 0:00:15]}  Bg6 {[%clk 0:00:08]} 34. Nxf6+ {[%clk 0:00:14]}  Ke7 {[%clk 0:00:08]} 35. Ng8+ {[%clk 0:00:09]}  Kf8 {[%clk 0:00:07]} 36. Kc1 {[%clk 0:00:03]}  Bxb1 {[%clk 0:00:06]} 0-1


[Site "https://www.chess.com"]

[Event "Titled Tuesday Blitz March 22 Late 2022"]
[White "Kosteniuk, Alexandra"]
[Black "Grischuk, Alexander"]
[WhiteFideId "4128125"]
[BlackFideId "4126025"]
[WhiteElo "2469"]
[BlackElo "2762"]
[Result "1/2-1/2"]
[Round "10"]
[TimeControl "180+1"]
[Date "2022.03.22"]
[WhiteClock "0:00:18"]
[BlackClock "0:00:09"]

1. e4 {[%clk 0:03:00]}  d5 {[%clk 0:03:00]} 2. exd5 {[%clk 0:03:00]}  Qxd5 {[%clk 0:03:01]} 3. Nc3 {[%clk 0:03:01]}  Qa5 {[%clk 0:03:02]} 4. d4 {[%clk 0:03:01]}  Nf6 {[%clk 0:03:02]} 5. Nf3 {[%clk 0:03:01]}  c6 {[%clk 0:03:03]} 6. Bc4 {[%clk 0:03:02]}  Bf5 {[%clk 0:03:04]} 7. Bd2 {[%clk 0:03:02]}  Nbd7 {[%clk 0:03:04]} 8. Qe2 {[%clk 0:03:03]}  Qc7 {[%clk 0:03:04]} 9. O-O-O {[%clk 0:02:59]}  e6 {[%clk 0:03:04]} 10. h3 {[%clk 0:02:59]}  O-O-O {[%clk 0:03:02]} 11. g4 {[%clk 0:02:58]}  Bg6 {[%clk 0:03:02]} 12. Bb3 {[%clk 0:02:50]}  Bd6 {[%clk 0:03:01]} 13. Rhe1 {[%clk 0:02:43]}  Rhe8 {[%clk 0:02:59]} 14. Ne5 {[%clk 0:02:41]}  Nd5 {[%clk 0:02:48]} 15. f4 {[%clk 0:02:34]}  Nxe5 {[%clk 0:01:58]} 16. fxe5 {[%clk 0:02:28]}  Bb4 {[%clk 0:01:58]} 17. Nxd5 {[%clk 0:02:05]}  Bxd2+ {[%clk 0:01:57]} 18. Rxd2 {[%clk 0:02:04]}  cxd5 {[%clk 0:01:56]} 19. Qf2 {[%clk 0:01:48]}  Kb8 {[%clk 0:01:55]} 20. c3 {[%clk 0:01:45]}  Qa5 {[%clk 0:01:45]} 21. a3 {[%clk 0:01:42]}  Rc8 {[%clk 0:01:45]} 22. Re3 {[%clk 0:01:34]}  Re7 {[%clk 0:01:16]} 23. Bc2 {[%clk 0:01:31]}  Rec7 {[%clk 0:01:17]} 24. Bxg6 {[%clk 0:01:23]}  fxg6 {[%clk 0:01:17]} 25. Rdd3 {[%clk 0:01:14]}  b5 {[%clk 0:01:09]} 26. Kd2 {[%clk 0:01:04]}  Qa4 {[%clk 0:01:04]} 27. Rf3 {[%clk 0:01:04]}  Qb3 {[%clk 0:01:00]} 28. Ke1 {[%clk 0:01:04]}  a5 {[%clk 0:00:58]} 29. Rf8 {[%clk 0:00:48]}  Rxf8 {[%clk 0:00:45]} 30. Qxf8+ {[%clk 0:00:47]}  Kb7 {[%clk 0:00:46]} 31. Rd2 {[%clk 0:00:45]}  b4 {[%clk 0:00:45]} 32. axb4 {[%clk 0:00:45]}  axb4 {[%clk 0:00:46]} 33. Qxb4+ {[%clk 0:00:39]}  Qxb4 {[%clk 0:00:46]} 34. cxb4 {[%clk 0:00:40]}  Kb6 {[%clk 0:00:42]} 35. Kd1 {[%clk 0:00:26]}  Kb5 {[%clk 0:00:37]} 36. Rc2 {[%clk 0:00:25]}  Rf7 {[%clk 0:00:25]} 37. Ke2 {[%clk 0:00:19]}  h5 {[%clk 0:00:22]} 38. Ke3 {[%clk 0:00:18]}  hxg4 {[%clk 0:00:19]} 39. hxg4 {[%clk 0:00:19]}  g5 {[%clk 0:00:19]} 40. Rc5+ {[%clk 0:00:19]}  Kxb4 {[%clk 0:00:18]} 41. Rc6 {[%clk 0:00:20]}  Re7 {[%clk 0:00:07]} 42. Kd3 {[%clk 0:00:20]}  Kb5 {[%clk 0:00:07]} 43. Rd6 {[%clk 0:00:20]}  Kb4 {[%clk 0:00:07]} 44. Rb6+ {[%clk 0:00:20]}  Ka5 {[%clk 0:00:07]} 45. Rc6 {[%clk 0:00:18]}  Kb5 {[%clk 0:00:07]} 46. Rd6 {[%clk 0:00:17]}  Kb4 {[%clk 0:00:08]} 47. Rb6+ {[%clk 0:00:17]}  Ka5 {[%clk 0:00:08]} 48. Rc6 {[%clk 0:00:18]}  Kb5 {[%clk 0:00:09]} 1/2-1/2


[Site "https://www.chess.com"]

[Event "Titled Tuesday Blitz March 22 Late 2022"]
[White "Kujawski, Adam"]
[Black "Thomas, Anysia"]
[WhiteFideId "1100920"]
[BlackFideId "670472"]
[WhiteElo "2053"]
[BlackElo "2002"]
[Result "1-0"]
[Round "10"]
[TimeControl "180+1"]
[Date "2022.03.22"]
[WhiteClock "0:00:09"]
[BlackClock "0:00:01"]

1. e4 {[%clk 0:03:00]}  c5 {[%clk 0:02:59]} 2. Nf3 {[%clk 0:03:00]}  g6 {[%clk 0:02:59]} 3. c3 {[%clk 0:02:59]}  d5 {[%clk 0:02:59]} 4. e5 {[%clk 0:02:55]}  Bg7 {[%clk 0:02:57]} 5. d4 {[%clk 0:02:55]}  Nc6 {[%clk 0:02:41]} 6. Be2 {[%clk 0:02:55]}  cxd4 {[%clk 0:02:34]} 7. cxd4 {[%clk 0:02:54]}  Nh6 {[%clk 0:02:35]} 8. Nc3 {[%clk 0:02:50]}  O-O {[%clk 0:02:35]} 9. Qb3 {[%clk 0:02:47]}  e6 {[%clk 0:02:16]} 10. O-O {[%clk 0:02:44]}  f6 {[%clk 0:02:16]} 11. exf6 {[%clk 0:02:31]}  Qxf6 {[%clk 0:02:14]} 12. Bg5 {[%clk 0:02:26]}  Qf5 {[%clk 0:02:07]} 13. Be3 {[%clk 0:01:45]}  b6 {[%clk 0:01:49]} 14. Nb5 {[%clk 0:01:39]}  Qf6 {[%clk 0:01:24]} 15. Rac1 {[%clk 0:01:36]}  Bd7 {[%clk 0:01:20]} 16. h3 {[%clk 0:01:15]}  Rac8 {[%clk 0:01:17]} 17. Nd6 {[%clk 0:01:04]}  Rc7 {[%clk 0:01:13]} 18. Bg5 {[%clk 0:00:54]}  Nxd4 {[%clk 0:00:51]} 19. Nxd4 {[%clk 0:00:25]}  Qxg5 {[%clk 0:00:17]} 20. Rxc7 {[%clk 0:00:23]}  Bxd4 {[%clk 0:00:15]} 21. Rxd7 {[%clk 0:00:20]}  Qe5 {[%clk 0:00:06]} 22. Qd3 {[%clk 0:00:14]}  Bc5 {[%clk 0:00:02]} 23. Nb7 {[%clk 0:00:11]}  Bd4 {[%clk 0:00:02]} 24. Bg4 {[%clk 0:00:08]}  Nxg4 {[%clk 0:00:01]} 25. hxg4 {[%clk 0:00:09]} 1-0


[Site "https://www.chess.com"]

[Event "Titled Tuesday Blitz March 22 Late 2022"]
[White "Lazavik, Denis"]
[Black "Mikhailov, Viacheslav"]
[WhiteFideId "13515110"]
[BlackFideId "4187369"]
[WhiteElo "2437"]
[BlackElo "2381"]
[Result "0-1"]
[Round "10"]
[TimeControl "180+1"]
[Date "2022.03.22"]
[WhiteClock "0:00:08"]
[BlackClock "0:00:14"]

1. d4 {[%clk 0:03:00]}  Nf6 {[%clk 0:02:59]} 2. c4 {[%clk 0:03:00]}  g6 {[%clk 0:03:00]} 3. g3 {[%clk 0:02:58]}  Bg7 {[%clk 0:03:01]} 4. Bg2 {[%clk 0:02:58]}  O-O {[%clk 0:02:56]} 5. Nc3 {[%clk 0:02:59]}  d6 {[%clk 0:02:55]} 6. Nf3 {[%clk 0:02:59]}  Nc6 {[%clk 0:02:52]} 7. O-O {[%clk 0:02:59]}  Bf5 {[%clk 0:02:53]} 8. Ne1 {[%clk 0:02:59]}  Qd7 {[%clk 0:02:52]} 9. e4 {[%clk 0:02:58]}  Bh3 {[%clk 0:02:48]} 10. f3 {[%clk 0:02:58]}  Bxg2 {[%clk 0:02:48]} 11. Kxg2 {[%clk 0:02:59]}  e5 {[%clk 0:02:48]} 12. d5 {[%clk 0:02:59]}  Nd4 {[%clk 0:02:49]} 13. Be3 {[%clk 0:02:59]}  c5 {[%clk 0:02:49]} 14. dxc6 {[%clk 0:02:54]}  bxc6 {[%clk 0:02:47]} 15. Bxd4 {[%clk 0:02:38]}  exd4 {[%clk 0:02:48]} 16. Qxd4 {[%clk 0:02:38]}  Nd5 {[%clk 0:02:47]} 17. Qd3 {[%clk 0:02:38]}  Nxc3 {[%clk 0:02:45]} 18. bxc3 {[%clk 0:02:38]}  Rab8 {[%clk 0:02:37]} 19. Nc2 {[%clk 0:02:36]}  Rb2 {[%clk 0:02:35]} 20. Rf2 {[%clk 0:02:35]}  h5 {[%clk 0:02:26]} 21. h4 {[%clk 0:02:17]}  Rfb8 {[%clk 0:02:23]} 22. Rd2 {[%clk 0:02:00]}  Qe6 {[%clk 0:02:08]} 23. Ne3 {[%clk 0:01:56]}  Rxd2+ {[%clk 0:02:01]} 24. Qxd2 {[%clk 0:01:57]}  Bh6 {[%clk 0:02:01]} 25. Re1 {[%clk 0:01:35]}  a5 {[%clk 0:01:47]} 26. f4 {[%clk 0:01:09]}  Qxe4+ {[%clk 0:01:46]} 27. Kf2 {[%clk 0:01:07]}  Bg7 {[%clk 0:01:26]} 28. Qxd6 {[%clk 0:00:42]}  Rb2+ {[%clk 0:01:25]} 29. Re2 {[%clk 0:00:42]}  Rb1 {[%clk 0:01:07]} 30. Qd8+ {[%clk 0:00:37]}  Kh7 {[%clk 0:01:07]} 31. Qd7 {[%clk 0:00:31]}  Qh1 {[%clk 0:00:43]} 32. Qxf7 {[%clk 0:00:31]}  Rg1 {[%clk 0:00:25]} 33. Nf5 {[%clk 0:00:08]}  Rf1+ {[%clk 0:00:13]} 34. Ke3 {[%clk 0:00:08]}  Qf3+ {[%clk 0:00:14]} 35. Kd2 {[%clk 0:00:08]}  Qxc3# {[%clk 0:00:14]} 0-1


[Site "https://www.chess.com"]

[Event "Titled Tuesday Blitz March 22 Late 2022"]
[White "Mangialardo, Tiago Carvalho"]
[Black "Simonovic, Miroslav"]
[WhiteFideId "2130718"]
[BlackFideId "919152"]
[WhiteElo "2070"]
[BlackElo "2043"]
[Result "0-1"]
[Round "10"]
[TimeControl "180+1"]
[Date "2022.03.22"]
[WhiteClock "0:02:17"]
[BlackClock "0:02:50"]

1. e4 {[%clk 0:02:37]}  c5 {[%clk 0:02:59]} 2. Nf3 {[%clk 0:02:37]}  Nc6 {[%clk 0:02:59]} 3. d4 {[%clk 0:02:37]}  cxd4 {[%clk 0:03:00]} 4. Nxd4 {[%clk 0:02:34]}  e5 {[%clk 0:03:00]} 5. Nf3 {[%clk 0:02:34]}  Nf6 {[%clk 0:02:59]} 6. Nc3 {[%clk 0:02:34]}  Bb4 {[%clk 0:02:59]} 7. Bd3 {[%clk 0:02:35]}  O-O {[%clk 0:02:58]} 8. O-O {[%clk 0:02:35]}  Bxc3 {[%clk 0:02:58]} 9. bxc3 {[%clk 0:02:34]}  d5 {[%clk 0:02:59]} 10. Bg5 {[%clk 0:02:25]}  dxe4 {[%clk 0:02:54]} 11. Bxe4 {[%clk 0:02:25]}  Qxd1 {[%clk 0:02:51]} 12. Raxd1 {[%clk 0:02:17]}  Nxe4 {[%clk 0:02:50]} 0-1


[Site "https://www.chess.com"]

[Event "Titled Tuesday Blitz March 22 Late 2022"]
[White "Manukian, Artak"]
[Black "Romero Ruscalleda, Josep"]
[WhiteFideId "13301373"]
[BlackFideId "2231859"]
[WhiteElo "2416"]
[BlackElo "2272"]
[Result "1-0"]
[Round "10"]
[TimeControl "180+1"]
[Date "2022.03.22"]
[WhiteClock "0:00:04"]
[BlackClock "0:00:03"]

1. e4 {[%clk 0:02:52]}  g6 {[%clk 0:03:00]} 2. d4 {[%clk 0:02:52]}  Bg7 {[%clk 0:03:00]} 3. c4 {[%clk 0:02:52]}  d6 {[%clk 0:03:01]} 4. Nc3 {[%clk 0:02:52]}  e5 {[%clk 0:03:01]} 5. d5 {[%clk 0:02:49]}  Ne7 {[%clk 0:03:00]} 6. g4 {[%clk 0:02:48]}  f5 {[%clk 0:03:00]} 7. gxf5 {[%clk 0:02:48]}  gxf5 {[%clk 0:03:00]} 8. Qh5+ {[%clk 0:02:46]}  Kf8 {[%clk 0:02:56]} 9. Nf3 {[%clk 0:02:42]}  Qe8 {[%clk 0:02:34]} 10. Qxe8+ {[%clk 0:02:27]}  Kxe8 {[%clk 0:02:34]} 11. Nb5 {[%clk 0:02:25]}  Na6 {[%clk 0:02:33]} 12. Ng5 {[%clk 0:02:23]}  h6 {[%clk 0:02:31]} 13. Ne6 {[%clk 0:02:23]}  Bxe6 {[%clk 0:02:31]} 14. dxe6 {[%clk 0:02:24]}  Nc6 {[%clk 0:02:19]} 15. exf5 {[%clk 0:02:18]}  Ke7 {[%clk 0:02:14]} 16. Rg1 {[%clk 0:02:07]}  Bf6 {[%clk 0:02:09]} 17. Bh3 {[%clk 0:01:53]}  Rac8 {[%clk 0:01:58]} 18. Nc3 {[%clk 0:01:45]}  Nab4 {[%clk 0:01:50]} 19. Kd1 {[%clk 0:01:40]}  Rhg8 {[%clk 0:01:36]} 20. Rf1 {[%clk 0:01:39]}  d5 {[%clk 0:01:18]} 21. Nxd5+ {[%clk 0:01:25]}  Nxd5 {[%clk 0:01:17]} 22. cxd5 {[%clk 0:01:26]}  Rcd8 {[%clk 0:01:18]} 23. Be3 {[%clk 0:01:09]}  Rxd5+ {[%clk 0:01:18]} 24. Ke2 {[%clk 0:01:09]}  Nd4+ {[%clk 0:01:02]} 25. Bxd4 {[%clk 0:01:01]}  exd4 {[%clk 0:01:02]} 26. Kd3 {[%clk 0:00:58]}  c5 {[%clk 0:00:59]} 27. b3 {[%clk 0:00:57]}  Rg5 {[%clk 0:00:53]} 28. Rg1 {[%clk 0:00:54]}  Rh5 {[%clk 0:00:52]} 29. Rg3 {[%clk 0:00:54]}  b5 {[%clk 0:00:44]} 30. Rc1 {[%clk 0:00:50]}  Bg5 {[%clk 0:00:35]} 31. Rc2 {[%clk 0:00:48]}  Kd6 {[%clk 0:00:28]} 32. Rf3 {[%clk 0:00:31]}  Bf6 {[%clk 0:00:19]} 33. Re2 {[%clk 0:00:28]}  Rh4 {[%clk 0:00:18]} 34. e7 {[%clk 0:00:17]}  Bxe7 {[%clk 0:00:17]} 35. f6 {[%clk 0:00:18]}  Bf8 {[%clk 0:00:13]} 36. f7 {[%clk 0:00:15]}  Kc7 {[%clk 0:00:10]} 37. Re8 {[%clk 0:00:15]}  Rd8 {[%clk 0:00:10]} 38. Be6 {[%clk 0:00:08]}  Rxh2 {[%clk 0:00:07]} 39. Rf5 {[%clk 0:00:08]}  Rh3+ {[%clk 0:00:06]} 40. Kd2 {[%clk 0:00:07]}  h5 {[%clk 0:00:04]} 41. Rd5 {[%clk 0:00:04]}  Bh6+ {[%clk 0:00:03]} 42. Ke2 {[%clk 0:00:04]} 1-0


[Site "https://www.chess.com"]

[Event "Titled Tuesday Blitz March 22 Late 2022"]
[White "Matinian, Nikita"]
[Black "Godzwon, Iwo"]
[WhiteFideId "24129100"]
[BlackFideId "21802483"]
[WhiteElo "2422"]
[BlackElo "2201"]
[Result "1-0"]
[Round "10"]
[TimeControl "180+1"]
[Date "2022.03.22"]
[WhiteClock "0:00:21"]
[BlackClock "0:01:03"]

1. e4 {[%clk 0:03:00]}  c5 {[%clk 0:02:57]} 2. Nc3 {[%clk 0:03:01]}  e6 {[%clk 0:02:57]} 3. f4 {[%clk 0:02:58]}  d5 {[%clk 0:02:57]} 4. Nf3 {[%clk 0:02:59]}  dxe4 {[%clk 0:02:57]} 5. Nxe4 {[%clk 0:02:59]}  Be7 {[%clk 0:02:58]} 6. Bb5+ {[%clk 0:02:53]}  Bd7 {[%clk 0:02:58]} 7. Qe2 {[%clk 0:02:53]}  Nf6 {[%clk 0:02:57]} 8. Ne5 {[%clk 0:02:47]}  O-O {[%clk 0:02:56]} 9. Nxf6+ {[%clk 0:02:40]}  Bxf6 {[%clk 0:02:57]} 10. a4 {[%clk 0:02:37]}  a6 {[%clk 0:02:49]} 11. Bxd7 {[%clk 0:02:36]}  Nxd7 {[%clk 0:02:50]} 12. Ra3 {[%clk 0:02:36]}  Qc7 {[%clk 0:02:43]} 13. Nxd7 {[%clk 0:02:35]}  Qxd7 {[%clk 0:02:43]} 14. a5 {[%clk 0:02:29]}  Rac8 {[%clk 0:02:27]} 15. Rh3 {[%clk 0:02:28]}  g6 {[%clk 0:02:25]} 16. d3 {[%clk 0:02:26]}  Qc7 {[%clk 0:02:18]} 17. O-O {[%clk 0:02:22]}  c4 {[%clk 0:02:12]} 18. dxc4 {[%clk 0:01:47]}  Qxc4 {[%clk 0:02:11]} 19. Qxc4 {[%clk 0:01:30]}  Rxc4 {[%clk 0:02:12]} 20. c3 {[%clk 0:01:18]}  Rd8 {[%clk 0:01:58]} 21. Be3 {[%clk 0:01:13]}  Ra4 {[%clk 0:01:56]} 22. g4 {[%clk 0:01:08]}  Rxa5 {[%clk 0:01:51]} 23. Bb6 {[%clk 0:01:06]}  Rad5 {[%clk 0:01:48]} 24. Bxd8 {[%clk 0:01:06]}  Bxd8 {[%clk 0:01:49]} 25. Rg3 {[%clk 0:00:57]}  Bb6+ {[%clk 0:01:46]} 26. Kh1 {[%clk 0:00:57]}  h5 {[%clk 0:01:43]} 27. gxh5 {[%clk 0:00:50]}  Rxh5 {[%clk 0:01:44]} 28. Rd1 {[%clk 0:00:47]}  Bc7 {[%clk 0:01:40]} 29. Rg4 {[%clk 0:00:43]}  Rb5 {[%clk 0:01:34]} 30. b4 {[%clk 0:00:43]}  Kg7 {[%clk 0:01:21]} 31. Rd7 {[%clk 0:00:42]}  Bb8 {[%clk 0:01:22]} 32. h4 {[%clk 0:00:30]}  Rb6 {[%clk 0:01:05]} 33. h5 {[%clk 0:00:27]}  Kf6 {[%clk 0:01:06]} 34. h6 {[%clk 0:00:24]}  Rb5 {[%clk 0:01:03]} 35. Rh4 {[%clk 0:00:21]} 1-0


[Site "https://www.chess.com"]

[Event "Titled Tuesday Blitz March 22 Late 2022"]
[White "Piesik, Piotr"]
[Black "Petrova, Irina"]
[WhiteFideId "1136194"]
[BlackFideId "14124122"]
[WhiteElo "2190"]
[BlackElo "1993"]
[Result "1-0"]
[Round "10"]
[TimeControl "180+1"]
[Date "2022.03.22"]
[WhiteClock "0:01:37"]
[BlackClock "0:00:15"]

1. Nf3 {[%clk 0:02:46]}  d6 {[%clk 0:03:00]} 2. d4 {[%clk 0:02:45]}  g6 {[%clk 0:03:00]} 3. g3 {[%clk 0:02:45]}  Bg7 {[%clk 0:03:00]} 4. Bg2 {[%clk 0:02:46]}  Nf6 {[%clk 0:02:57]} 5. O-O {[%clk 0:02:46]}  O-O {[%clk 0:02:57]} 6. Nbd2 {[%clk 0:02:47]}  Nc6 {[%clk 0:02:55]} 7. e4 {[%clk 0:02:47]}  e5 {[%clk 0:02:52]} 8. dxe5 {[%clk 0:02:48]}  Nxe5 {[%clk 0:02:49]} 9. Nxe5 {[%clk 0:02:48]}  dxe5 {[%clk 0:02:50]} 10. Qe2 {[%clk 0:02:48]}  c6 {[%clk 0:02:47]} 11. a4 {[%clk 0:02:48]}  Qe7 {[%clk 0:02:36]} 12. b3 {[%clk 0:02:47]}  Rd8 {[%clk 0:02:30]} 13. Bb2 {[%clk 0:02:47]}  Ne8 {[%clk 0:02:10]} 14. Nc4 {[%clk 0:02:44]}  Qc7 {[%clk 0:02:00]} 15. Rfd1 {[%clk 0:02:41]}  Be6 {[%clk 0:01:59]} 16. Bf1 {[%clk 0:02:40]}  f6 {[%clk 0:01:40]} 17. Ne3 {[%clk 0:02:39]}  Bf8 {[%clk 0:01:36]} 18. Qf3 {[%clk 0:02:37]}  Be7 {[%clk 0:01:33]} 19. Bc4 {[%clk 0:02:36]}  Bxc4 {[%clk 0:01:28]} 20. Nxc4 {[%clk 0:02:37]}  Rxd1+ {[%clk 0:01:24]} 21. Rxd1 {[%clk 0:02:36]}  Rd8 {[%clk 0:01:25]} 22. Rd3 {[%clk 0:02:34]}  Nd6 {[%clk 0:01:20]} 23. Ne3 {[%clk 0:02:28]}  Nf7 {[%clk 0:01:05]} 24. Qd1 {[%clk 0:02:24]}  Rxd3 {[%clk 0:01:01]} 25. Qxd3 {[%clk 0:02:25]}  Qd8 {[%clk 0:00:53]} 26. Qc4 {[%clk 0:02:24]}  Kg7 {[%clk 0:00:51]} 27. h4 {[%clk 0:02:21]}  h5 {[%clk 0:00:48]} 28. Bc3 {[%clk 0:02:14]}  Qd7 {[%clk 0:00:41]} 29. Kg2 {[%clk 0:02:12]}  Qd8 {[%clk 0:00:35]} 30. Qe6 {[%clk 0:02:06]}  Nd6 {[%clk 0:00:31]} 31. Kf3 {[%clk 0:02:01]}  Nf7 {[%clk 0:00:22]} 32. Ke2 {[%clk 0:01:59]}  Qd6 {[%clk 0:00:20]} 33. Qc8 {[%clk 0:01:54]}  Nd8 {[%clk 0:00:20]} 34. Nc4 {[%clk 0:01:52]}  Qe6 {[%clk 0:00:16]} 35. Qc7 {[%clk 0:01:47]}  Qg4+ {[%clk 0:00:15]} 36. f3 {[%clk 0:01:41]}  Qe6 {[%clk 0:00:14]} 37. Bb4 {[%clk 0:01:37]}  Kf8 {[%clk 0:00:14]} 38. Qxd8+ {[%clk 0:01:36]}  Kf7 {[%clk 0:00:13]} 39. Qxe7+ {[%clk 0:01:36]}  Qxe7 {[%clk 0:00:14]} 40. Bxe7 {[%clk 0:01:37]}  Kxe7 {[%clk 0:00:15]} 41. Na5 {[%clk 0:01:37]} 1-0


[Site "https://www.chess.com"]